fUSD/lending_fUSD_20241223
["ID","MTS","AMOUNT","RATE_DAILY","PERIOD"]
[346446119,1734979398295,-500.0,0.00017254,2]
[346446120,1734979398320,-646.31,0.00017254,2]
[346446121,1734979398344,-500.0,0.00017254,2]
[346446122,1734979398367,-578.27,0.00017254,2]
[346446123,1734979398392,-1214.04,0.00017254,2]
[346446124,1734979398415,-500.0,0.00017254,2]
[346446125,1734979398438,-500.0,0.00017254,2]
[346446126,1734979398462,-1088.36,0.00017254,2]
[346446127,1734979398485,-696.23,0.00017254,2]
[346446128,1734979398508,-500.0,0.00017254,2]
[346446129,1734979398531,-830.44,0.00017254,2]
[346446130,1734979398554,-1199.95,0.00017254,2]
[346446131,1734979398576,-500.0,0.00017254,2]
[346446132,1734979398599,-736.51,0.00017254,2]
[346446133,1734979398622,-507.47689465,0.00017254,2]
[346446134,1734979398644,-150.0,0.00017254,2]
[346446135,1734979398666,-2197.92,0.00017254,2]
[346446136,1734979398688,-500.0,0.00017254,2]
[346446137,1734979398712,-3995.92115829,0.00017254,2]
[346446138,1734979398735,-511.07,0.00017254,2]
[346446139,1734979398991,-1357.67,0.00017254,2]
[346446140,1734979399020,-1003.86,0.00017254,2]
[346446141,1734979399044,-662.02,0.00017254,2]
[346446142,1734979399069,-1187.46,0.00017254,2]
[346446143,1734979399092,-1288.03,0.00017254,2]
[346446144,1734979399115,-1136.77,0.00017254,2]
[346446145,1734979399139,-500.0,0.00017254,2]
[346446146,1734979399166,-500.0,0.00017254,2]
[346446147,1734979399192,-1136.93,0.00017254,2]
[346446148,1734979399217,-1653.42,0.00017254,2]
[346446149,1734979399243,-500.0,0.00017254,2]
[346446150,1734979399267,-500.0,0.00017254,2]
[346446151,1734979399292,-500.0,0.00017254,2]
[346446152,1734979399316,-500.0,0.00017254,2]
[346446153,1734979399342,-500.0,0.00017254,2]
[346446154,1734979399371,-500.0,0.00017254,2]
[346446155,1734979399397,-931.65,0.00017254,2]
[346446156,1734979399422,-500.0,0.00017254,2]
[346446157,1734979399446,-733.26,0.00017254,2]
[346446158,1734979399470,-1427.16,0.00017254,2]
[346446159,1734979399498,-500.0,0.00017254,2]
[346446160,1734979399523,-500.0,0.00017254,2]
[346446161,1734979399548,-989.5,0.00017254,2]
[346446162,1734979399571,-519.68540565,0.00017254,2]
[346446163,1734979399596,-559.03,0.00017254,2]
[346446164,1734979399621,-1550.73,0.00017254,2]
[346446165,1734979399645,-500.0,0.00017254,2]
[346446166,1734979399669,-500.0,0.00017254,2]
[346446167,1734979399693,-3216.00757149,0.00017279,2]
[346446168,1734979399720,-3216.00757149,0.00017409,2]
[346446169,1734979399748,-420.03400767,0.00017447,2]
[346446170,1734979399772,-500.0,0.00017455,2]
[346446171,1734979399798,-566.786,0.000175,2]
[346446172,1734979399822,-169.0,0.00017503,2]
[346446173,1734979399846,-946.97,0.00017523,2]
[346446174,1734979399870,-500.0,0.00017523,2]
[346446175,1734979399894,-1073.05,0.00017523,2]
[346446176,1734979399918,-2323.63,0.00017523,2]
[346446177,1734979399942,-3167.94,0.00017523,2]
[346446178,1734979399967,-2292.8,0.00017523,2]
[346446179,1734979399992,-2294.43,0.00017523,2]
[346446180,1734979400020,-994.54,0.00017523,2]
[346446181,1734979400045,-1916.33,0.00017523,2]
[346446182,1734979400068,-517.01,0.00017523,2]
[346446183,1734979400091,-771.01,0.00017523,2]
[346446184,1734979400115,-3890.24,0.00017523,2]
[346446185,1734979400140,-4907.33,0.00017523,2]
[346446186,1734979400162,-1036.33,0.00017523,2]
[346446187,1734979400185,-500.0,0.00017523,2]
[346446188,1734979400212,-1621.42,0.00017523,2]
[346446189,1734979400236,-500.0,0.00017523,2]
[346446190,1734979400260,-561.36,0.00017523,2]
[346446191,1734979400285,-6199.08,0.00017523,2]
[346446192,1734979400308,-1495.22,0.00017523,2]
[346446193,1734979400333,-500.0,0.00017523,2]
[346446194,1734979400357,-2963.01,0.00017523,2]
[346446195,1734979400380,-19032.56,0.00017523,2]
[346446196,1734979400403,-1105.65,0.00017523,2]
[346446197,1734979400426,-500.0,0.00017523,2]
[346446198,1734979400451,-3483.46,0.00017523,2]
[346446199,1734979400475,-1936.61,0.00017523,2]
[346446200,1734979400502,-4787.85,0.00017523,2]
[346446201,1734979400526,-1636.43,0.00017523,2]
[346446202,1734979400550,-6135.29,0.00017523,2]
[346446203,1734979400575,-7406.66,0.00017523,2]
[346446204,1734979400601,-1896.84,0.00017523,2]
[346446205,1734979400627,-3961.08,0.00017523,2]
[346446206,1734979400650,-3888.71,0.00017523,2]
[346446207,1734979400673,-1274.68,0.00017523,2]
[346446208,1734979400696,-3012.85,0.00017523,2]
[346446209,1734979400720,-1880.28,0.00017523,2]
[346446210,1734979400747,-6536.91,0.00017523,2]
[346446211,1734979400770,-986.71,0.00017523,2]
[346446212,1734979400794,-20885.3,0.00017523,2]
[346446213,1734979400817,-817.19,0.00017523,2]
[346446214,1734979400840,-992.34,0.00017523,2]
[346446215,1734979400862,-500.0,0.00017523,2]
[346446216,1734979400890,-562.14,0.00017523,2]
[346446217,1734979400914,-2611.64,0.00017523,2]
[346446218,1734979400938,-500.0,0.00017524,2]
[346446219,1734979400962,-500.0,0.00017524,2]
[346446220,1734979400995,-504.78,0.00017524,2]
[346446221,1734979401031,-376.02684816,0.00017524,2]
[346446222,1734979401056,-666.71,0.00017524,2]
[346446223,1734979401081,-1806.94,0.00017524,2]
[346446224,1734979401106,-786.6,0.00017524,2]
[346446225,1734979401129,-893.14,0.00017524,2]
[346446226,1734979401152,-500.0,0.00017524,2]
[346446227,1734979401176,-1900.12,0.00017524,2]
[346446228,1734979401199,-500.0,0.00017524,2]
[346446229,1734979401222,-500.0,0.00017524,2]
[346446230,1734979401249,-1751.96,0.00017524,2]
[346446231,1734979401273,-500.0,0.00017524,2]
[346446232,1734979401297,-500.0,0.00017524,2]
[346446233,1734979401320,-500.0,0.00017524,2]
[346446234,1734979401344,-500.0,0.00017524,2]
[346446235,1734979401368,-637.54,0.00017524,2]
[346446236,1734979401392,-500.0,0.00017524,2]
[346446237,1734979401417,-500.0,0.00017524,2]
[346446238,1734979401440,-500.0,0.00017524,2]
[346446239,1734979401462,-702.98,0.00017524,2]
[346446240,1734979401488,-500.0,0.00017524,2]
[346446241,1734979401510,-463.19,0.00017524,2]
[346446242,1734979401533,-500.0,0.00017524,2]
[346446243,1734979401556,-150.99,0.00017524,2]
[346446244,1734979401581,-1050.11,0.00017524,2]
[346446245,1734979401604,-150.99,0.00017524,2]
[346446246,1734979401626,-500.0,0.00017524,2]
[346446247,1734979401651,-1583.08,0.00017524,2]
[346446248,1734979401673,-588.33,0.00017524,2]
[346446249,1734979401697,-1212.82,0.00017524,2]
[346446250,1734979401720,-1317.91,0.00017524,2]
[346446251,1734979401747,-500.0,0.00017524,2]
[346446252,1734979401772,-500.0,0.00017524,2]
[346446253,1734979401796,-2098.49,0.00017524,2]
[346446254,1734979401820,-968.46,0.00017524,2]
[346446255,1734979401844,-2430.25,0.00017524,2]
[346446256,1734979401868,-2365.499772,0.00017524,2]
[346446257,1734979401891,-500.0,0.00017524,2]
[346446258,1734979401914,-1698.12,0.00017524,2]
[346446259,1734979401937,-2816.27987,0.00017524,2]
[346446260,1734979401960,-500.0,0.00017524,2]
[346446261,1734979401982,-500.0,0.00017524,2]
[346446262,1734979402007,-500.0,0.00017524,2]
[346446263,1734979402031,-616.12,0.00017524,2]
[346446264,1734979402054,-500.0,0.00017524,2]
[346446265,1734979402078,-963.83,0.00017524,2]
[346446266,1734979402102,-502.37,0.00017524,2]
[346446267,1734979402126,-500.0,0.00017524,2]
[346446268,1734979402147,-2025.39,0.00017524,2]
[346446269,1734979402169,-500.0,0.00017524,2]
[346446270,1734979402191,-500.0,0.00017524,2]
[346446271,1734979402214,-1846.27,0.00017524,2]
[346446272,1734979402238,-1076.87,0.00017524,2]
[346446273,1734979402261,-500.0,0.00017524,2]
[346446274,1734979402283,-610.36,0.00017524,2]
[346446275,1734979402306,-500.0,0.00017524,2]
[346446276,1734979402328,-500.0,0.00017524,2]
[346446277,1734979402352,-529.09,0.00017524,2]
[346446278,1734979402375,-500.0,0.00017524,2]
[346446279,1734979402400,-3864.35,0.00017524,2]
[346446280,1734979402423,-1605.61,0.00017524,2]
[346446281,1734979402446,-1000.0,0.00017524,2]
[346446282,1734979402469,-500.0,0.00017524,2]
[346446283,1734979402492,-500.0,0.00017524,2]
[346446284,1734979402515,-3749.73,0.00017524,2]
[346446285,1734979402539,-500.0,0.00017524,2]
[346446286,1734979402563,-11996.29,0.00017524,2]
[346446287,1734979402599,-3705.58,0.00017524,2]
[346446288,1734979402624,-500.0,0.00017524,2]
[346446289,1734979402930,-9670.05,0.00017524,2]
[346446290,1734979402954,-1197.74,0.00017524,2]
[346446291,1734979402978,-4374.46,0.00017524,2]
[346446292,1734979403005,-2944.1,0.00017524,2]
[346446293,1734979403028,-2117.94,0.00017524,2]
[346446294,1734979403051,-555.73595193,0.00017524,2]
[346446295,1734979403074,-4724.75,0.00017524,2]
[346446296,1734979403097,-1782.41,0.00017524,2]
[346446297,1734979403122,-500.0,0.00017524,2]
[346446298,1734979403144,-2042.71,0.00017524,2]
[346446299,1734979403168,-1185.9,0.00017524,2]
[346446300,1734979403190,-982.33,0.00017524,2]
[346446301,1734979403213,-955.67,0.00017524,2]
[346446302,1734979403236,-2994.35,0.00017524,2]
[346446303,1734979403258,-402.68348172,0.00017524,2]
[346446304,1734979403283,-17536.53,0.00017524,2]
[346446305,1734979403307,-10065.38,0.00017524,2]
[346446306,1734979403331,-4202.45,0.00017524,2]
[346446307,1734979403354,-2618.72,0.00017524,2]
[346446308,1734979403380,-2758.51,0.00017524,2]
[346446309,1734979403404,-500.0,0.00017524,2]
[346446310,1734979403427,-500.0,0.00017524,2]
[346446311,1734979403450,-1692.12,0.00017524,2]
[346446312,1734979403472,-1476.12,0.00017524,2]
[346446313,1734979403495,-5401.27,0.00017524,2]
[346446314,1734979403518,-2374.68,0.00017524,2]
[346446315,1734979403541,-3713.81,0.00017524,2]
[346446316,1734979403564,-504.34642682,0.00017524,2]
[346446317,1734979403586,-500.0,0.00017524,2]
[346446318,1734979403609,-3855.11,0.00017524,2]
[346446319,1734979403632,-1665.7,0.00017524,2]
[346446320,1734979403654,-240.52747122,0.00017524,2]
[346446321,1734979403676,-500.0,0.00017524,2]
[346446322,1734979403699,-500.0,0.00017524,2]
[346446323,1734979403722,-500.0,0.00017524,2]
[346446324,1734979403746,-1797.59,0.00017524,2]
[346446325,1734979403769,-500.0,0.00017524,2]
[346446326,1734979403792,-303.63327296,0.00017524,2]
[346446327,1734979403815,-1767.34,0.00017524,2]
[346446328,1734979403838,-500.0,0.00017524,2]
[346446329,1734979403861,-2120.18,0.00017524,2]
[346446330,1734979403884,-3292.45,0.00017524,2]
[346446331,1734979403907,-4101.67,0.00017524,2]
[346446332,1734979403931,-3393.76,0.00017524,2]
[346446333,1734979403954,-678.48,0.00017524,2]
[346446334,1734979403976,-2795.19,0.00017524,2]
[346446335,1734979404003,-500.0,0.00017524,2]
[346446336,1734979404026,-2461.1,0.00017524,2]
[346446337,1734979404049,-500.0,0.00017524,2]
[346446338,1734979404072,-2240.73,0.00017524,2]
[346446339,1734979404098,-6109.95,0.00017524,2]
[346446340,1734979404120,-669.16,0.00017524,2]
[346446341,1734979404142,-500.0,0.00017524,2]
[346446342,1734979404165,-500.0,0.00017524,2]
[346446343,1734979404187,-10669.25,0.00017524,2]
[346446344,1734979404212,-2820.61,0.00017524,2]
[346446345,1734979404235,-500.0,0.00017524,2]
[346446346,1734979404259,-2902.88,0.00017524,2]
[346446347,1734979404282,-630.77,0.00017524,2]
[346446348,1734979404304,-2638.98,0.00017524,2]
[346446349,1734979404326,-14643.32,0.00017524,2]
[346446350,1734979404350,-2212.02,0.00017524,2]
[346446351,1734979404372,-3554.28,0.00017524,2]
[346446352,1734979404396,-3080.94,0.00017524,2]
[346446353,1734979404418,-586.81552411,0.00017524,2]
[346446354,1734979404441,-6056.87,0.00017524,2]
[346446355,1734979404464,-3011.92,0.00017524,2]
[346446356,1734979404486,-1709.36,0.00017524,2]
[346446357,1734979404509,-894.16,0.00017524,2]
[346446358,1734979404532,-202.76,0.00017524,2]
[346446359,1734979404555,-3988.81,0.00017524,2]
[346446360,1734979404576,-500.0,0.00017524,2]
[346446361,1734979404599,-2989.24,0.00017524,2]
[346446362,1734979404621,-2421.45,0.00017524,2]
[346446363,1734979404643,-2573.04,0.00017524,2]
[346446364,1734979404666,-967.28,0.00017525,2]
[346446365,1734979404689,-502.98,0.00017525,2]
[346446366,1734979404711,-500.0,0.00017525,2]
[346446367,1734979404734,-500.0,0.00017525,2]
[346446368,1734979404757,-222.03617734,0.00017525,2]
[346446369,1734979404778,-524.35,0.00017525,2]
[346446370,1734979404800,-500.0,0.00017525,2]
[346446371,1734979404822,-500.0,0.00017525,2]
[346446372,1734979404844,-500.0,0.00017525,2]
[346446373,1734979404866,-769.01,0.00017525,2]
[346446374,1734979404888,-885.31,0.00017525,2]
[346446375,1734979404912,-844.77,0.00017525,2]
[346446376,1734979404934,-500.0,0.00017525,2]
[346446377,1734979404958,-500.0,0.00017525,2]
[346446378,1734979404981,-500.0,0.00017525,2]
[346446379,1734979405007,-570.82,0.00017525,2]
[346446380,1734979405029,-500.0,0.00017525,2]
[346446381,1734979405052,-500.0,0.00017525,2]
[346446382,1734979405076,-500.0,0.00017525,2]
[346446383,1734979405099,-500.0,0.00017525,2]
[346446384,1734979405123,-685.36,0.00017525,2]
[346446385,1734979405144,-500.0,0.00017525,2]
[346446386,1734979405167,-500.0,0.00017525,2]
[346446387,1734979405189,-500.0,0.00017525,2]
[346446388,1734979405211,-500.0,0.00017525,2]
[346446389,1734979405234,-500.0,0.00017525,2]
[346446390,1734979405259,-665.6,0.00017525,2]
[346446391,1734979405282,-407.02069924,0.00017525,2]
[346446392,1734979405306,-500.0,0.00017525,2]
[346446393,1734979405329,-574.29,0.00017525,2]
[346446394,1734979405352,-500.0,0.00017525,2]
[346446395,1734979405374,-532.94,0.00017525,2]
[346446396,1734979405396,-555.42,0.00017525,2]
[346446397,1734979405419,-1520.46,0.00017525,2]
[346446398,1734979405442,-500.0,0.00017525,2]
[346446399,1734979405464,-984.33,0.00017525,2]
[346446400,1734979405488,-500.0,0.00017525,2]
[346446401,1734979405511,-1584.84,0.00017525,2]
[346446402,1734979405533,-592.79,0.00017525,2]
[346446403,1734979405556,-500.0,0.00017525,2]
[346446404,1734979405578,-520.09,0.00017525,2]
[346446405,1734979405601,-500.0,0.00017525,2]
[346446406,1734979405623,-500.0,0.00017525,2]
[346446407,1734979405645,-500.0,0.00017525,2]
[346446408,1734979405668,-818.62,0.00017525,2]
[346446409,1734979405690,-617.66,0.00017525,2]
[346446410,1734979405712,-500.0,0.00017525,2]
[346446411,1734979405734,-635.45,0.00017525,2]
[346446412,1734979405758,-837.08,0.00017525,2]
[346446413,1734979405781,-500.0,0.00017525,2]
[346446414,1734979405804,-500.0,0.00017525,2]
[346446415,1734979405827,-500.0,0.00017525,2]
[346446416,1734979405849,-512.42,0.00017525,2]
[346446417,1734979405872,-765.58,0.00017525,2]
[346446418,1734979405894,-1073.98,0.00017525,2]
[346446419,1734979405917,-552.57671718,0.00017525,2]
[346446420,1734979405940,-500.0,0.00017525,2]
[346446421,1734979405964,-587.8,0.00017525,2]
[346446422,1734979405987,-637.54,0.00017525,2]
[346446423,1734979406012,-500.0,0.00017525,2]
[346446424,1734979406036,-500.0,0.00017525,2]
[346446425,1734979406060,-842.35,0.00017525,2]
[346446426,1734979406084,-500.0,0.00017525,2]
[346446427,1734979406107,-500.0,0.00017525,2]
[346446428,1734979406131,-721.69,0.00017525,2]
[346446429,1734979406154,-996.95,0.00017525,2]
[346446430,1734979406176,-709.31,0.00017525,2]
[346446431,1734979406198,-690.48,0.00017525,2]
[346446432,1734979406223,-856.3,0.00017525,2]
[346446433,1734979406247,-726.08,0.00017525,2]
[346446434,1734979406271,-500.0,0.00017525,2]
[346446435,1734979406294,-1896.66,0.00017525,2]
[346446436,1734979406318,-700.74,0.00017525,2]
[346446437,1734979406554,-500.0,0.00017525,2]
[346446438,1734979406590,-500.0,0.00017525,2]
[346446439,1734979406625,-500.0,0.00017525,2]
[346446440,1734979406659,-1380.99,0.00017525,2]
[346446441,1734979406694,-1042.24,0.00017525,2]
[346446442,1734979406729,-500.0,0.00017525,2]
[346446443,1734979406764,-500.0,0.00017525,2]
[346446444,1734979406798,-500.0,0.00017525,2]
[346446445,1734979406834,-500.0,0.00017525,2]
[346446446,1734979406868,-500.0,0.00017525,2]
[346446447,1734979406903,-659.83,0.00017525,2]
[346446448,1734979406936,-859.15,0.00017525,2]
[346446449,1734979406970,-500.0,0.00017525,2]
[346446450,1734979407007,-500.0,0.00017525,2]
[346446451,1734979407040,-500.0,0.00017525,2]
[346446452,1734979407077,-500.0,0.00017525,2]
[346446453,1734979407112,-500.0,0.00017525,2]
[346446454,1734979407148,-562.9,0.00017525,2]
[346446455,1734979407185,-756.75,0.00017525,2]
[346446456,1734979407221,-500.0,0.00017525,2]
[346446457,1734979407258,-609.25,0.00017525,2]
[346446458,1734979407295,-664.88,0.00017525,2]
[346446459,1734979407334,-3563.88,0.00017525,2]
[346446460,1734979407372,-500.0,0.00017525,2]
[346446461,1734979407408,-1330.7,0.00017525,2]
[346446462,1734979407445,-1263.69,0.00017525,2]
[346446463,1734979407481,-500.0,0.00017525,2]
[346446464,1734979407522,-888.77,0.00017525,2]
[346446465,1734979407560,-1371.99,0.00017525,2]
[346446466,1734979407596,-500.0,0.00017525,2]
[346446467,1734979407630,-600.39,0.00017525,2]
[346446468,1734979407665,-10166.96,0.00017525,2]
[346446470,1734979407700,-1256.14,0.00017525,2]
[346446471,1734979407739,-500.0,0.00017525,2]
[346446472,1734979407778,-161.37987771,0.00017525,2]
[346446473,1734979407817,-1240.02,0.00017525,2]
[346446474,1734979407855,-760.46,0.00017525,2]
[346446475,1734979407895,-3527.86,0.00017525,2]
[346446476,1734979407932,-1076.29,0.00017525,2]
[346446477,1734979407970,-500.0,0.00017525,2]
[346446478,1734979408012,-2525.45,0.00017525,2]
[346446479,1734979408054,-500.0,0.00017525,2]
[346446480,1734979408091,-5755.8,0.00017525,2]
[346446481,1734979408132,-563.49,0.00017525,2]
[346446482,1734979408169,-500.0,0.00017525,2]
[346446483,1734979408209,-1051.83,0.00017525,2]
[346446484,1734979408246,-4688.94,0.00017525,2]
[346446485,1734979408285,-3770.29,0.00017525,2]
[346446486,1734979408324,-500.0,0.00017525,2]
[346446487,1734979408365,-500.0,0.00017525,2]
[346446488,1734979408403,-8807.6,0.00017525,2]
[346446489,1734979408440,-1017.98,0.00017525,2]
[346446490,1734979408476,-500.0,0.00017525,2]
[346446491,1734979408512,-1244.05,0.00017525,2]
[346446492,1734979408547,-500.0,0.00017525,2]
[346446493,1734979408586,-3190.13,0.00017525,2]
[346446494,1734979408620,-1242.34,0.00017525,2]
[346446495,1734979408656,-500.0,0.00017525,2]
[346446496,1734979408691,-1969.49,0.00017525,2]
[346446497,1734979408728,-721.42,0.00017525,2]
[346446498,1734979408768,-1110.6,0.00017525,2]
[346446499,1734979408805,-8035.72,0.00017525,2]
[346446500,1734979408840,-625.55,0.00017525,2]
[346446501,1734979408877,-7583.8,0.00017525,2]
[346446502,1734979408915,-936.39,0.00017525,2]
[346446503,1734979408954,-4933.96,0.00017525,2]
[346446504,1734979408988,-822.06,0.00017525,2]
[346446505,1734979409027,-3325.82,0.00017525,2]
[346446506,1734979409063,-25163.5,0.00017525,2]
[346446507,1734979409097,-573.56,0.00017525,2]
[346446508,1734979409131,-7086.92,0.00017525,2]
[346446509,1734979409166,-723.8,0.00017525,2]
[346446510,1734979409200,-500.0,0.00017525,2]
[346446511,1734979409234,-1716.21,0.00017525,2]
[346446512,1734979409270,-1357.98,0.00017525,2]
[346446513,1734979409305,-2106.14,0.00017525,2]
[346446514,1734979409340,-580.67,0.00017525,2]
[346446515,1734979409375,-500.0,0.00017525,2]
[346446516,1734979409410,-3707.65,0.00017525,2]
[346446517,1734979409447,-500.0,0.00017525,2]
[346446518,1734979409484,-500.0,0.00017525,2]
[346446519,1734979409523,-500.0,0.00017525,2]
[346446520,1734979409560,-2211.7,0.00017525,2]
[346446521,1734979409594,-1962.73,0.00017525,2]
[346446522,1734979409630,-1278.11,0.00017525,2]
[346446523,1734979409664,-3312.36,0.00017525,2]
[346446524,1734979409699,-500.0,0.00017525,2]
[346446525,1734979409737,-2973.07,0.00017525,2]
[346446526,1734979409774,-8378.91,0.00017525,2]
[346446527,1734979409810,-401.62,0.00017525,2]
[346446528,1734979409845,-630.91,0.00017525,2]
[346446529,1734979409881,-531.07,0.00017525,2]
[346446530,1734979409918,-1595.46,0.00017525,2]
[346446531,1734979409953,-500.0,0.00017525,2]
[346446532,1734979409989,-2470.53,0.00017525,2]
[346446533,1734979410029,-500.0,0.00017525,2]
[346446534,1734979410065,-506.16,0.00017525,2]
[346446535,1734979410101,-500.0,0.00017525,2]
[346446536,1734979410135,-1617.88,0.00017525,2]
[346446537,1734979410170,-4509.73,0.00017525,2]
[346446538,1734979410205,-2903.34,0.00017525,2]
[346446539,1734979410238,-786.94,0.00017525,2]
[346446540,1734979410273,-500.0,0.00017525,2]
[346446541,1734979410307,-588.72,0.00017525,2]
[346446542,1734979410341,-500.0,0.00017525,2]
[346446543,1734979410378,-500.0,0.00017525,2]
[346446544,1734979410413,-3246.74,0.00017525,2]
[346446545,1734979410447,-1933.1,0.00017525,2]
[346446546,1734979410481,-711.39,0.00017525,2]
[346446547,1734979410518,-555.3,0.00017525,2]
[346446548,1734979410554,-576.96,0.00017525,2]
[346446549,1734979410588,-1325.54,0.00017525,2]
[346446550,1734979410622,-500.0,0.00017525,2]
[346446551,1734979410656,-2348.88,0.00017525,2]
[346446552,1734979410690,-3268.76,0.00017525,2]
[346446553,1734979410725,-1499.3,0.00017525,2]
[346446554,1734979410760,-500.0,0.00017525,2]
[346446555,1734979410796,-1240.52,0.00017525,2]
[346446556,1734979410831,-2161.97,0.00017525,2]
[346446557,1734979410866,-2745.39,0.00017525,2]
[346446558,1734979410902,-2360.09,0.00017525,2]
[346446559,1734979410936,-608.23,0.00017525,2]
[346446560,1734979410973,-500.0,0.00017525,2]
[346446561,1734979411008,-500.0,0.00017525,2]
[346446562,1734979411049,-5740.01,0.00017525,2]
[346446563,1734979411084,-3919.4,0.00017525,2]
[346446564,1734979411119,-500.0,0.00017525,2]
[346446565,1734979411154,-500.0,0.00017525,2]
[346446566,1734979411189,-883.77,0.00017525,2]
[346446567,1734979411222,-500.0,0.00017525,2]
[346446568,1734979411256,-500.0,0.00017525,2]
[346446569,1734979411290,-500.0,0.00017525,2]
[346446570,1734979411324,-6919.75,0.00017525,2]
[346446571,1734979411359,-3640.95,0.00017525,2]
[346446572,1734979411395,-500.0,0.00017525,2]
[346446573,1734979411430,-500.0,0.00017525,2]
[346446574,1734979411465,-7254.07,0.00017525,2]
[346446575,1734979411500,-500.0,0.00017525,2]
[346446576,1734979411535,-34197.14,0.00017525,2]
[346446577,1734979411568,-1461.43,0.00017525,2]
[346446578,1734979411603,-1026.74,0.00017525,2]
[346446579,1734979411637,-282.0,0.00017526,2]
[346446580,1734979411671,-867.8,0.00017526,2]
[346446581,1734979411704,-584.42,0.00017526,2]
[346446582,1734979411739,-500.0,0.00017526,2]
[346446583,1734979411775,-557.08,0.00017526,2]
[346446584,1734979411809,-1069.37,0.00017526,2]
[346446585,1734979411844,-500.0,0.00017526,2]
[346446586,1734979411877,-674.72,0.00017526,2]
[346446587,1734979412193,-500.0,0.00017526,2]
[346446588,1734979412231,-766.54,0.00017526,2]
[346446589,1734979412269,-500.0,0.00017526,2]
[346446590,1734979412306,-1812.71,0.00017526,2]
[346446591,1734979412340,-500.0,0.00017526,2]
[346446592,1734979412375,-886.55,0.00017526,2]
[346446593,1734979412409,-1552.33,0.00017526,2]
[346446594,1734979412445,-500.0,0.00017526,2]
[346446595,1734979412481,-500.0,0.00017526,2]
[346446596,1734979412524,-500.0,0.00017526,2]
[346446597,1734979412559,-500.0,0.00017526,2]
[346446598,1734979412591,-1224.65,0.00017526,2]
[346446599,1734979412625,-500.0,0.00017526,2]
[346446600,1734979412658,-500.0,0.00017526,2]
[346446601,1734979412693,-1381.46,0.00017526,2]
[346446602,1734979412729,-1378.16,0.00017526,2]
[346446603,1734979412764,-1583.49,0.00017526,2]
[346446604,1734979412798,-500.0,0.00017526,2]
[346446605,1734979412832,-500.0,0.00017526,2]
[346446606,1734979412867,-500.0,0.00017526,2]
[346446607,1734979412905,-500.0,0.00017526,2]
[346446608,1734979412941,-1246.2,0.00017526,2]
[346446609,1734979412976,-718.17,0.00017526,2]
[346446610,1734979413011,-500.0,0.00017526,2]
[346446611,1734979413057,-500.0,0.00017526,2]
[346446612,1734979413093,-500.0,0.00017526,2]
[346446613,1734979413128,-500.0,0.00017526,2]
[346446614,1734979413163,-2139.6,0.00017526,2]
[346446615,1734979413198,-500.0,0.00017526,2]
[346446616,1734979413234,-500.0,0.00017526,2]
[346446617,1734979413271,-625.59,0.00017526,2]
[346446618,1734979413307,-500.0,0.00017526,2]
[346446619,1734979413346,-1076.93,0.00017526,2]